[Event "Titled Tuesday Blitz June 13 Late 2023"]
[White "Skvortsov, Andrei"]
[Black "Andreikin, Dmitry"]
[WhiteFideId "24108600"]
[BlackFideId "4158814"]
[WhiteElo "2259"]
[BlackElo "2736"]
[Result "0-1"]
[Round "4"]
[TimeControl "180+2"]
[Date "2023.06.13"]
[WhiteClock "0:00:39"]
[BlackClock "0:01:53"]
[Board "31"]

1. e4 {[%clk 0:03:00]}  g6 {[%clk 0:03:00]} 2. d4 {[%clk 0:03:00]}  Bg7 {[%clk 0:03:01]} 3. Nc3 {[%clk 0:02:57]}  c6 {[%clk 0:03:01]} 4. h3 {[%clk 0:02:54]}  d6 {[%clk 0:02:56]} 5. Nf3 {[%clk 0:02:54]}  Nf6 {[%clk 0:02:56]} 6. Bd3 {[%clk 0:02:40]}  O-O {[%clk 0:02:53]} 7. e5 {[%clk 0:02:34]}  dxe5 {[%clk 0:02:49]} 8. dxe5 {[%clk 0:02:35]}  Nd5 {[%clk 0:02:50]} 9. Qe2 {[%clk 0:02:32]}  Nxc3 {[%clk 0:02:42]} 10. bxc3 {[%clk 0:02:32]}  Nd7 {[%clk 0:02:41]} 11. e6 {[%clk 0:02:24]}  Bxc3+ {[%clk 0:02:36]} 12. Bd2 {[%clk 0:02:24]}  Bxa1 {[%clk 0:02:34]} 13. exd7 {[%clk 0:02:24]}  Bxd7 {[%clk 0:02:32]} 14. O-O {[%clk 0:02:20]}  Bf6 {[%clk 0:02:31]} 15. Bh6 {[%clk 0:02:18]}  Re8 {[%clk 0:02:29]} 16. Ne5 {[%clk 0:02:16]}  Be6 {[%clk 0:02:24]} 17. Rb1 {[%clk 0:02:09]}  Qa5 {[%clk 0:02:20]} 18. Ng4 {[%clk 0:01:57]}  Bxg4 {[%clk 0:02:15]} 19. hxg4 {[%clk 0:01:53]}  Qxa2 {[%clk 0:02:14]} 20. Re1 {[%clk 0:01:29]}  Qa5 {[%clk 0:02:13]} 21. Bc4 {[%clk 0:01:23]}  e6 {[%clk 0:02:12]} 22. Rd1 {[%clk 0:01:17]}  Rad8 {[%clk 0:02:09]} 23. Bd3 {[%clk 0:01:18]}  Bg5 {[%clk 0:02:07]} 24. Bxg5 {[%clk 0:01:10]}  Qxg5 {[%clk 0:02:08]} 25. Ra1 {[%clk 0:01:04]}  a5 {[%clk 0:02:06]} 26. Qe4 {[%clk 0:01:03]}  Rd5 {[%clk 0:02:04]} 27. Rb1 {[%clk 0:00:57]}  b5 {[%clk 0:02:03]} 28. g3 {[%clk 0:00:54]}  a4 {[%clk 0:02:02]} 29. Kg2 {[%clk 0:00:53]}  a3 {[%clk 0:02:01]} 30. Qb4 {[%clk 0:00:50]}  Ra8 {[%clk 0:01:58]} 31. Ra1 {[%clk 0:00:50]}  a2 {[%clk 0:01:53]} 32. Qb3 {[%clk 0:00:39]}  Rxd3 {[%clk 0:01:53]} 0-1


[Site "https://www.chess.com"]

[Event "Titled Tuesday Blitz June 13 Late 2023"]
[White "Babazada, Khazar"]
[Black "Korkmaz, Necmettin"]
[WhiteFideId "13413554"]
[BlackFideId "6303285"]
[WhiteElo "2369"]
[BlackElo "2097"]
[Result "1-0"]
[Round "4"]
[TimeControl "180+2"]
[Date "2023.06.13"]
[WhiteClock "0:01:09"]
[BlackClock "0:00:23"]
[Board "33"]

1. e4 {[%clk 0:02:57]}  e5 {[%clk 0:02:58]} 2. Nf3 {[%clk 0:02:57]}  Nc6 {[%clk 0:02:58]} 3. Bc4 {[%clk 0:02:57]}  Nf6 {[%clk 0:02:58]} 4. d3 {[%clk 0:02:58]}  h6 {[%clk 0:02:57]} 5. O-O {[%clk 0:02:58]}  d6 {[%clk 0:02:50]} 6. c3 {[%clk 0:02:58]}  g6 {[%clk 0:02:43]} 7. Re1 {[%clk 0:02:56]}  Bg7 {[%clk 0:02:42]} 8. Nbd2 {[%clk 0:02:57]}  Na5 {[%clk 0:02:36]} 9. Bb5+ {[%clk 0:02:56]}  c6 {[%clk 0:02:37]} 10. Ba4 {[%clk 0:02:57]}  b5 {[%clk 0:02:31]} 11. Bc2 {[%clk 0:02:56]}  O-O {[%clk 0:02:31]} 12. d4 {[%clk 0:02:56]}  Qe7 {[%clk 0:02:25]} 13. b4 {[%clk 0:02:52]}  Nc4 {[%clk 0:02:24]} 14. Nxc4 {[%clk 0:02:52]}  bxc4 {[%clk 0:02:24]} 15. h3 {[%clk 0:02:51]}  a5 {[%clk 0:02:17]} 16. bxa5 {[%clk 0:02:50]}  Rxa5 {[%clk 0:02:16]} 17. a4 {[%clk 0:02:50]}  c5 {[%clk 0:02:14]} 18. Qe2 {[%clk 0:02:28]}  Ba6 {[%clk 0:02:12]} 19. d5 {[%clk 0:02:25]}  Nd7 {[%clk 0:02:10]} 20. Be3 {[%clk 0:02:19]}  Kh7 {[%clk 0:02:08]} 21. Reb1 {[%clk 0:02:19]}  Nf6 {[%clk 0:01:57]} 22. Nd2 {[%clk 0:02:17]}  Nh5 {[%clk 0:01:54]} 23. g3 {[%clk 0:02:13]}  Qd7 {[%clk 0:01:50]} 24. Kh2 {[%clk 0:02:13]}  Ra8 {[%clk 0:01:42]} 25. Nxc4 {[%clk 0:02:10]}  Bxc4 {[%clk 0:01:36]} 26. Qxc4 {[%clk 0:02:10]}  Kh8 {[%clk 0:01:29]} 27. Rb6 {[%clk 0:02:10]}  f5 {[%clk 0:01:28]} 28. exf5 {[%clk 0:02:08]}  gxf5 {[%clk 0:01:28]} 29. g4 {[%clk 0:02:08]}  Nf4 {[%clk 0:01:22]} 30. Bxf5 {[%clk 0:02:06]}  Qe7 {[%clk 0:01:22]} 31. Rab1 {[%clk 0:02:04]}  Rf8 {[%clk 0:01:19]} 32. Rb8 {[%clk 0:01:58]}  Ra8 {[%clk 0:01:18]} 33. Rxa8 {[%clk 0:01:55]}  Rxa8 {[%clk 0:01:17]} 34. Qe4 {[%clk 0:01:40]}  Qh4 {[%clk 0:01:16]} 35. Qf3 {[%clk 0:01:39]}  Bf6 {[%clk 0:01:10]} 36. Rb7 {[%clk 0:01:39]}  Rxa4 {[%clk 0:01:05]} 37. Rd7 {[%clk 0:01:18]}  Bg5 {[%clk 0:00:33]} 38. Rxd6 {[%clk 0:01:17]}  Ra2 {[%clk 0:00:26]} 39. Rd7 {[%clk 0:01:15]}  Nxh3 {[%clk 0:00:22]} 40. Rh7+ {[%clk 0:01:07]}  Kg8 {[%clk 0:00:22]} 41. Be6+ {[%clk 0:01:07]}  Kxh7 {[%clk 0:00:23]} 42. Qf7+ {[%clk 0:01:08]}  Kh8 {[%clk 0:00:23]} 43. Qg8# {[%clk 0:01:09]} 1-0


[Site "https://www.chess.com"]

[Event "Titled Tuesday Blitz June 13 Late 2023"]
[White "Gimenez Aguirre, Alejo Ismael"]
[Black "Grigoriants, Sergey"]
[WhiteFideId "32041667"]
[BlackFideId "4130804"]
[WhiteElo "2165"]
[BlackElo "2502"]
[Result "0-1"]
[Round "4"]
[TimeControl "180+2"]
[Date "2023.06.13"]
[WhiteClock "0:00:14"]
[BlackClock "0:01:07"]
[Board "35"]

1. e4 {[%clk 0:02:55]}  c5 {[%clk 0:02:59]} 2. Nf3 {[%clk 0:02:55]}  Nc6 {[%clk 0:03:00]} 3. Bb5 {[%clk 0:02:55]}  e6 {[%clk 0:02:59]} 4. O-O {[%clk 0:02:55]}  Nge7 {[%clk 0:02:59]} 5. Re1 {[%clk 0:02:55]}  a6 {[%clk 0:02:59]} 6. Bf1 {[%clk 0:02:56]}  b6 {[%clk 0:02:57]} 7. c3 {[%clk 0:02:56]}  d5 {[%clk 0:02:55]} 8. exd5 {[%clk 0:02:56]}  Nxd5 {[%clk 0:02:48]} 9. d4 {[%clk 0:02:55]}  cxd4 {[%clk 0:02:48]} 10. Nxd4 {[%clk 0:02:55]}  Bb7 {[%clk 0:02:42]} 11. Nxc6 {[%clk 0:02:48]}  Bxc6 {[%clk 0:02:42]} 12. Qg4 {[%clk 0:02:48]}  Nf6 {[%clk 0:02:20]} 13. Rxe6+ {[%clk 0:02:41]}  Be7 {[%clk 0:01:55]} 14. Qc4 {[%clk 0:01:23]}  Bb5 {[%clk 0:01:36]} 15. Rxe7+ {[%clk 0:00:54]}  Qxe7 {[%clk 0:01:35]} 16. Qf4 {[%clk 0:00:54]}  Bxf1 {[%clk 0:01:25]} 17. Kxf1 {[%clk 0:00:53]}  O-O {[%clk 0:01:26]} 18. Be3 {[%clk 0:00:53]}  Nd5 {[%clk 0:01:24]} 19. Qg5 {[%clk 0:00:53]}  Nxe3+ {[%clk 0:01:23]} 20. Qxe3 {[%clk 0:00:54]}  Qd6 {[%clk 0:01:21]} 21. g3 {[%clk 0:00:46]}  Qd1+ {[%clk 0:01:20]} 22. Kg2 {[%clk 0:00:46]}  Rfe8 {[%clk 0:01:13]} 23. Qf3 {[%clk 0:00:46]}  Qxf3+ {[%clk 0:01:10]} 24. Kxf3 {[%clk 0:00:46]}  Re1 {[%clk 0:01:11]} 25. a4 {[%clk 0:00:29]}  Rd8 {[%clk 0:01:09]} 26. a5 {[%clk 0:00:14]}  b5 {[%clk 0:01:07]} 0-1


[Site "https://www.chess.com"]

[Event "Titled Tuesday Blitz June 13 Late 2023"]
[White "Horvath, Dominik"]
[Black "TimGrutter03"]
[WhiteFideId "1642561"]
[WhiteElo "2407"]
[BlackElo "2564"]
[Result "0-1"]
[Round "4"]
[TimeControl "180+2"]
[Date "2023.06.13"]
[WhiteClock "0:00:15"]
[BlackClock "0:01:13"]
[Board "38"]

1. e4 {[%clk 0:03:00]}  c6 {[%clk 0:02:58]} 2. Nc3 {[%clk 0:02:54]}  d5 {[%clk 0:02:58]} 3. Qe2 {[%clk 0:02:54]}  d4 {[%clk 0:02:33]} 4. Nd1 {[%clk 0:02:52]}  c5 {[%clk 0:02:33]} 5. f4 {[%clk 0:02:46]}  Nc6 {[%clk 0:02:32]} 6. Nf2 {[%clk 0:02:46]}  Nf6 {[%clk 0:02:31]} 7. Qf3 {[%clk 0:02:46]}  e5 {[%clk 0:02:31]} 8. Bc4 {[%clk 0:02:44]}  exf4 {[%clk 0:02:25]} 9. d3 {[%clk 0:02:39]}  Ne5 {[%clk 0:02:22]} 10. Bb5+ {[%clk 0:02:39]}  Bd7 {[%clk 0:02:22]} 11. Bxd7+ {[%clk 0:02:39]}  Qxd7 {[%clk 0:02:22]} 12. Qxf4 {[%clk 0:02:40]}  Bd6 {[%clk 0:02:21]} 13. Qh4 {[%clk 0:02:33]}  c4 {[%clk 0:02:15]} 14. Ne2 {[%clk 0:02:30]}  cxd3 {[%clk 0:02:11]} 15. cxd3 {[%clk 0:02:21]}  Bb4+ {[%clk 0:02:09]} 16. Bd2 {[%clk 0:02:10]}  Bxd2+ {[%clk 0:02:09]} 17. Kxd2 {[%clk 0:02:10]}  Qb5 {[%clk 0:01:58]} 18. Nxd4 {[%clk 0:01:24]}  Qxb2+ {[%clk 0:01:57]} 19. Nc2 {[%clk 0:01:24]}  Rc8 {[%clk 0:01:42]} 20. Rhc1 {[%clk 0:01:20]}  O-O {[%clk 0:01:39]} 21. Nd1 {[%clk 0:00:33]}  Rxc2+ {[%clk 0:01:27]} 22. Rxc2 {[%clk 0:00:31]}  Qxa1 {[%clk 0:01:28]} 23. Rb2 {[%clk 0:00:21]}  Nxd3 {[%clk 0:01:18]} 24. Kxd3 {[%clk 0:00:17]}  Qxd1+ {[%clk 0:01:17]} 25. Rd2 {[%clk 0:00:15]}  Rd8+ {[%clk 0:01:13]} 0-1


[Site "https://www.chess.com"]

[Event "Titled Tuesday Blitz June 13 Late 2023"]
[White "Chor, Kevin"]
[Black "Remizov, Yaroslav"]
[WhiteFideId "2090740"]
[BlackFideId "34134015"]
[WhiteElo "2562"]
[BlackElo "2405"]
[Result "0-1"]
[Round "4"]
[TimeControl "180+2"]
[Date "2023.06.13"]
[WhiteClock "0:00:08"]
[BlackClock "0:00:03"]
[Board "39"]

1. e4 {[%clk 0:03:00]}  c5 {[%clk 0:02:59]} 2. Nf3 {[%clk 0:02:59]}  Nc6 {[%clk 0:03:00]} 3. d4 {[%clk 0:02:58]}  cxd4 {[%clk 0:03:01]} 4. Nxd4 {[%clk 0:02:59]}  Nf6 {[%clk 0:03:01]} 5. Nc3 {[%clk 0:02:59]}  e6 {[%clk 0:03:02]} 6. g3 {[%clk 0:02:52]}  d5 {[%clk 0:03:00]} 7. exd5 {[%clk 0:02:49]}  exd5 {[%clk 0:02:59]} 8. Bg2 {[%clk 0:02:44]}  Bg4 {[%clk 0:02:59]} 9. f3 {[%clk 0:02:16]}  Bh5 {[%clk 0:02:16]} 10. O-O {[%clk 0:01:57]}  Be7 {[%clk 0:02:00]} 11. Re1 {[%clk 0:01:44]}  O-O {[%clk 0:01:59]} 12. Nf5 {[%clk 0:01:43]}  Bc5+ {[%clk 0:01:55]} 13. Kh1 {[%clk 0:01:43]}  Ne4 {[%clk 0:01:21]} 14. Nxe4 {[%clk 0:01:24]}  dxe4 {[%clk 0:01:21]} 15. Qxd8 {[%clk 0:01:21]}  Raxd8 {[%clk 0:01:11]} 16. fxe4 {[%clk 0:01:20]}  Nb4 {[%clk 0:01:05]} 17. Be3 {[%clk 0:01:09]}  Bxe3 {[%clk 0:00:51]} 18. Nxe3 {[%clk 0:01:10]}  Rd2 {[%clk 0:00:50]} 19. Rac1 {[%clk 0:01:00]}  Rc8 {[%clk 0:00:48]} 20. Nd5 {[%clk 0:00:56]}  Nc6 {[%clk 0:00:24]} 21. b4 {[%clk 0:00:49]}  Kf8 {[%clk 0:00:20]} 22. c4 {[%clk 0:00:38]}  Rxa2 {[%clk 0:00:16]} 23. c5 {[%clk 0:00:38]}  Ne5 {[%clk 0:00:13]} 24. Ra1 {[%clk 0:00:38]}  Rd2 {[%clk 0:00:06]} 25. Rxa7 {[%clk 0:00:31]}  Bf3 {[%clk 0:00:06]} 26. Nf4 {[%clk 0:00:31]}  g5 {[%clk 0:00:05]} 27. Bxf3 {[%clk 0:00:23]}  gxf4 {[%clk 0:00:01]} 28. Rf1 {[%clk 0:00:13]}  fxg3 {[%clk 0:00:01]} 29. hxg3 {[%clk 0:00:13]}  Rc6 {[%clk 0:00:02]} 30. Bg2 {[%clk 0:00:10]}  Rh6+ {[%clk 0:00:02]} 31. Kg1 {[%clk 0:00:11]}  Rg6 {[%clk 0:00:02]} 32. Rf5 {[%clk 0:00:08]}  Rxg3 {[%clk 0:00:02]} 33. Rxe5 {[%clk 0:00:09]}  Rgxg2+ {[%clk 0:00:03]} 34. Kf1 {[%clk 0:00:10]}  Rh2 {[%clk 0:00:03]} 35. Rg5 {[%clk 0:00:08]}  Rd1# {[%clk 0:00:03]} 0-1


[Site "https://www.chess.com"]

[Event "Titled Tuesday Blitz June 13 Late 2023"]
[White "Goltsev, Dmitry"]
[Black "Novikov, Evgenij"]
[WhiteFideId "24176710"]
[BlackFideId "4125380"]
[WhiteElo "2356"]
[BlackElo "2242"]
[Result "1-0"]
[Round "4"]
[TimeControl "180+2"]
[Date "2023.06.13"]
[WhiteClock "0:00:25"]
[BlackClock "0:00:18"]
[Board "41"]

1. e4 {[%clk 0:03:00]}  c6 {[%clk 0:03:00]} 2. d4 {[%clk 0:03:00]}  d5 {[%clk 0:03:00]} 3. Nc3 {[%clk 0:03:01]}  dxe4 {[%clk 0:03:01]} 4. Nxe4 {[%clk 0:03:02]}  Nf6 {[%clk 0:03:01]} 5. Ng3 {[%clk 0:03:01]}  g6 {[%clk 0:02:59]} 6. Nf3 {[%clk 0:03:01]}  Bg7 {[%clk 0:03:00]} 7. c3 {[%clk 0:03:01]}  O-O {[%clk 0:03:00]} 8. Bd3 {[%clk 0:03:02]}  Bg4 {[%clk 0:02:59]} 9. h3 {[%clk 0:03:02]}  Bxf3 {[%clk 0:02:59]} 10. Qxf3 {[%clk 0:03:02]}  Nbd7 {[%clk 0:02:59]} 11. O-O {[%clk 0:03:00]}  e5 {[%clk 0:02:58]} 12. Bg5 {[%clk 0:03:00]}  h6 {[%clk 0:02:57]} 13. Be3 {[%clk 0:02:56]}  exd4 {[%clk 0:02:56]} 14. Bxd4 {[%clk 0:02:56]}  Nd5 {[%clk 0:02:53]} 15. Bxg7 {[%clk 0:02:52]}  Kxg7 {[%clk 0:02:54]} 16. Rfe1 {[%clk 0:02:52]}  Qf6 {[%clk 0:02:53]} 17. Be4 {[%clk 0:02:48]}  Qxf3 {[%clk 0:02:50]} 18. Bxf3 {[%clk 0:02:49]}  N7f6 {[%clk 0:02:49]} 19. c4 {[%clk 0:02:41]}  Nb4 {[%clk 0:02:47]} 20. Re7 {[%clk 0:02:41]}  Rab8 {[%clk 0:02:38]} 21. a3 {[%clk 0:02:32]}  Nd3 {[%clk 0:02:34]} 22. b4 {[%clk 0:02:31]}  Rfe8 {[%clk 0:02:30]} 23. Rc7 {[%clk 0:02:15]}  Ne5 {[%clk 0:02:27]} 24. Be2 {[%clk 0:01:58]}  Rec8 {[%clk 0:02:27]} 25. Rxc8 {[%clk 0:01:57]}  Rxc8 {[%clk 0:02:28]} 26. Rd1 {[%clk 0:01:55]}  Rc7 {[%clk 0:02:24]} 27. f4 {[%clk 0:01:50]}  Ned7 {[%clk 0:02:24]} 28. c5 {[%clk 0:01:47]}  Nd5 {[%clk 0:02:15]} 29. f5 {[%clk 0:01:47]}  N7f6 {[%clk 0:02:13]} 30. Bf3 {[%clk 0:01:38]}  Re7 {[%clk 0:02:13]} 31. b5 {[%clk 0:01:21]}  Nc3 {[%clk 0:02:09]} 32. bxc6 {[%clk 0:01:17]}  bxc6 {[%clk 0:01:45]} 33. Rd6 {[%clk 0:01:16]}  Re1+ {[%clk 0:01:28]} 34. Kh2 {[%clk 0:01:10]}  Ra1 {[%clk 0:01:18]} 35. Rxc6 {[%clk 0:01:00]}  Rxa3 {[%clk 0:01:17]} 36. Rc7 {[%clk 0:00:57]}  g5 {[%clk 0:01:03]} 37. Nh5+ {[%clk 0:00:50]}  Nxh5 {[%clk 0:01:02]} 38. Bxh5 {[%clk 0:00:51]}  Kf6 {[%clk 0:00:54]} 39. Rxf7+ {[%clk 0:00:50]}  Ke5 {[%clk 0:00:54]} 40. c6 {[%clk 0:00:49]}  Nd5 {[%clk 0:00:51]} 41. Rd7 {[%clk 0:00:42]}  Rc3 {[%clk 0:00:49]} 42. Bf3 {[%clk 0:00:41]}  Nb6 {[%clk 0:00:49]} 43. Rxa7 {[%clk 0:00:38]}  Kxf5 {[%clk 0:00:49]} 44. c7 {[%clk 0:00:37]}  Ke5 {[%clk 0:00:45]} 45. Rb7 {[%clk 0:00:32]}  Nc8 {[%clk 0:00:40]} 46. Bg4 {[%clk 0:00:27]}  Nd6 {[%clk 0:00:40]} 47. Ra7 {[%clk 0:00:27]}  Kf6 {[%clk 0:00:32]} 48. Ra6 {[%clk 0:00:25]}  Ke7 {[%clk 0:00:32]} 49. Rxd6 {[%clk 0:00:25]}  Kxd6 {[%clk 0:00:33]} 50. c8=Q {[%clk 0:00:25]}  Rxc8 {[%clk 0:00:33]} 51. Bxc8 {[%clk 0:00:26]}  Ke5 {[%clk 0:00:33]} 52. Bg4 {[%clk 0:00:26]}  Kf6 {[%clk 0:00:33]} 53. Kg3 {[%clk 0:00:26]}  Kg6 {[%clk 0:00:33]} 54. Bd1 {[%clk 0:00:26]}  h5 {[%clk 0:00:34]} 55. Bc2+ {[%clk 0:00:26]}  Kf6 {[%clk 0:00:32]} 56. Kf3 {[%clk 0:00:27]}  Kg7 {[%clk 0:00:21]} 57. Ke4 {[%clk 0:00:25]}  Kf6 {[%clk 0:00:21]} 58. g4 {[%clk 0:00:24]}  hxg4 {[%clk 0:00:18]} 59. hxg4 {[%clk 0:00:25]} 1-0


[Site "https://www.chess.com"]

[Event "Titled Tuesday Blitz June 13 Late 2023"]
[White "Rustemov, Alexander"]
[Black "Besedes, Danilo"]
[WhiteFideId "4119002"]
[BlackFideId "946796"]
[WhiteElo "2802"]
[BlackElo "2352"]
[Result "1-0"]
[Round "4"]
[TimeControl "180+2"]
[Date "2023.06.13"]
[WhiteClock "0:00:12"]
[BlackClock "0:00:00"]
[Board "43"]

1. d4 {[%clk 0:03:00]}  Nf6 {[%clk 0:02:59]} 2. c4 {[%clk 0:03:00]}  d6 {[%clk 0:02:59]} 3. Nf3 {[%clk 0:03:00]}  Nbd7 {[%clk 0:03:00]} 4. g3 {[%clk 0:02:59]}  e5 {[%clk 0:03:00]} 5. Nc3 {[%clk 0:02:58]}  Be7 {[%clk 0:03:01]} 6. Bg2 {[%clk 0:02:57]}  O-O {[%clk 0:03:01]} 7. O-O {[%clk 0:02:57]}  c6 {[%clk 0:03:02]} 8. Qc2 {[%clk 0:02:56]}  Qc7 {[%clk 0:03:02]} 9. h3 {[%clk 0:02:45]}  Re8 {[%clk 0:03:02]} 10. e4 {[%clk 0:02:44]}  Nf8 {[%clk 0:03:02]} 11. Be3 {[%clk 0:02:42]}  Ng6 {[%clk 0:03:01]} 12. Rfe1 {[%clk 0:02:40]}  a5 {[%clk 0:03:01]} 13. Rad1 {[%clk 0:02:39]}  Be6 {[%clk 0:03:00]} 14. b3 {[%clk 0:02:37]}  b5 {[%clk 0:02:45]} 15. d5 {[%clk 0:02:27]}  Bd7 {[%clk 0:02:25]} 16. dxc6 {[%clk 0:02:22]}  Bxc6 {[%clk 0:02:23]} 17. cxb5 {[%clk 0:02:01]}  Bxb5 {[%clk 0:02:23]} 18. Rc1 {[%clk 0:02:01]}  Qb7 {[%clk 0:02:21]} 19. Nxb5 {[%clk 0:01:59]}  Qxb5 {[%clk 0:02:22]} 20. Nd2 {[%clk 0:01:57]}  a4 {[%clk 0:02:17]} 21. Bf1 {[%clk 0:01:52]}  Qb4 {[%clk 0:02:06]} 22. Bc4 {[%clk 0:01:39]}  axb3 {[%clk 0:02:03]} 23. Bxb3 {[%clk 0:01:37]}  h5 {[%clk 0:01:56]} 24. Qc4 {[%clk 0:01:31]}  Qxc4 {[%clk 0:01:57]} 25. Rxc4 {[%clk 0:01:30]}  h4 {[%clk 0:01:56]} 26. Kg2 {[%clk 0:01:30]}  hxg3 {[%clk 0:01:56]} 27. fxg3 {[%clk 0:01:30]}  Nf8 {[%clk 0:01:50]} 28. Rc7 {[%clk 0:01:27]}  Ne6 {[%clk 0:01:48]} 29. Rb7 {[%clk 0:01:26]}  Bd8 {[%clk 0:01:38]} 30. Kf3 {[%clk 0:01:02]}  Ba5 {[%clk 0:01:37]} 31. Rd1 {[%clk 0:01:00]}  Rab8 {[%clk 0:01:28]} 32. Rxb8 {[%clk 0:01:00]}  Rxb8 {[%clk 0:01:29]} 33. Nc4 {[%clk 0:01:00]}  Bc3 {[%clk 0:00:54]} 34. Nxd6 {[%clk 0:00:59]}  Rd8 {[%clk 0:00:43]} 35. Nf5 {[%clk 0:00:58]}  Rxd1 {[%clk 0:00:41]} 36. Bxd1 {[%clk 0:00:59]}  g6 {[%clk 0:00:40]} 37. Ne7+ {[%clk 0:00:54]}  Kf8 {[%clk 0:00:39]} 38. Nd5 {[%clk 0:00:55]}  Nxd5 {[%clk 0:00:33]} 39. exd5 {[%clk 0:00:55]}  Nd4+ {[%clk 0:00:33]} 40. Ke4 {[%clk 0:00:47]}  Nb5 {[%clk 0:00:31]} 41. Bc5+ {[%clk 0:00:42]}  Kg7 {[%clk 0:00:27]} 42. Kd3 {[%clk 0:00:41]}  Ba5 {[%clk 0:00:22]} 43. Kc4 {[%clk 0:00:39]}  Nc3 {[%clk 0:00:17]} 44. Bb3 {[%clk 0:00:38]}  Ne4 {[%clk 0:00:17]} 45. Bb4 {[%clk 0:00:35]}  Bc7 {[%clk 0:00:16]} 46. g4 {[%clk 0:00:33]}  f5 {[%clk 0:00:16]} 47. gxf5 {[%clk 0:00:31]}  gxf5 {[%clk 0:00:17]} 48. Kb5 {[%clk 0:00:31]}  f4 {[%clk 0:00:16]} 49. Kc6 {[%clk 0:00:31]}  Bd8 {[%clk 0:00:16]} 50. Bd1 {[%clk 0:00:25]}  Ng5 {[%clk 0:00:15]} 51. Bc3 {[%clk 0:00:23]}  Bf6 {[%clk 0:00:15]} 52. h4 {[%clk 0:00:23]}  Ne4 {[%clk 0:00:14]} 53. Be1 {[%clk 0:00:21]}  Ng3 {[%clk 0:00:12]} 54. d6 {[%clk 0:00:18]}  Nf5 {[%clk 0:00:10]} 55. d7 {[%clk 0:00:18]}  e4 {[%clk 0:00:09]} 56. Bc3 {[%clk 0:00:15]}  Ne7+ {[%clk 0:00:06]} 57. Kb5 {[%clk 0:00:13]}  Bxc3 {[%clk 0:00:02]} 58. d8=Q {[%clk 0:00:13]}  Bf6 {[%clk 0:00:00]} 59. Qd7 {[%clk 0:00:12]} 1-0


[Site "https://www.chess.com"]

[Event "Titled Tuesday Blitz June 13 Late 2023"]
[White "Herrera Reyes, Jose Antonio"]
[Black "Sreyas Payyappat"]
[WhiteFideId "2274914"]
[BlackFideId "46674969"]
[WhiteElo "2272"]
[BlackElo "2043"]
[Result "0-1"]
[Round "4"]
[TimeControl "180+2"]
[Date "2023.06.13"]
[WhiteClock "0:00:12"]
[BlackClock "0:00:08"]
[Board "47"]

1. Nf3 {[%clk 0:02:59]}  Nf6 {[%clk 0:02:58]} 2. g3 {[%clk 0:03:00]}  c5 {[%clk 0:02:57]} 3. Bg2 {[%clk 0:03:01]}  Nc6 {[%clk 0:02:57]} 4. d3 {[%clk 0:03:02]}  g6 {[%clk 0:02:57]} 5. Nc3 {[%clk 0:03:02]}  Bg7 {[%clk 0:02:58]} 6. h4 {[%clk 0:03:03]}  h5 {[%clk 0:02:58]} 7. Bg5 {[%clk 0:03:03]}  d5 {[%clk 0:02:57]} 8. Qd2 {[%clk 0:03:03]}  Bg4 {[%clk 0:02:57]} 9. O-O {[%clk 0:03:03]}  e6 {[%clk 0:02:57]} 10. e4 {[%clk 0:03:01]}  dxe4 {[%clk 0:02:56]} 11. dxe4 {[%clk 0:02:35]}  Qxd2 {[%clk 0:02:51]} 12. Nxd2 {[%clk 0:02:36]}  e5 {[%clk 0:02:43]} 13. Nb3 {[%clk 0:02:34]}  b6 {[%clk 0:02:40]} 14. f4 {[%clk 0:02:34]}  Nd7 {[%clk 0:02:36]} 15. Nd5 {[%clk 0:02:29]}  O-O {[%clk 0:02:32]} 16. f5 {[%clk 0:02:25]}  Kh7 {[%clk 0:02:18]} 17. c3 {[%clk 0:02:23]}  a5 {[%clk 0:02:16]} 18. Ne3 {[%clk 0:02:13]}  f6 {[%clk 0:02:12]} 19. Nxg4 {[%clk 0:02:09]}  fxg5 {[%clk 0:02:09]} 20. Ne3 {[%clk 0:02:06]}  gxh4 {[%clk 0:02:01]} 21. gxh4 {[%clk 0:02:04]}  Bf6 {[%clk 0:02:00]} 22. Rad1 {[%clk 0:02:03]}  Rad8 {[%clk 0:01:57]} 23. Rd6 {[%clk 0:01:47]}  Ndb8 {[%clk 0:01:39]} 24. Re6 {[%clk 0:01:47]}  Bxh4 {[%clk 0:01:32]} 25. Rxg6 {[%clk 0:01:44]}  Rd3 {[%clk 0:01:28]} 26. Nd5 {[%clk 0:01:43]}  c4 {[%clk 0:01:10]} 27. Nc1 {[%clk 0:01:31]}  Rd2 {[%clk 0:01:07]} 28. b3 {[%clk 0:01:30]}  b5 {[%clk 0:01:02]} 29. Bf3 {[%clk 0:01:23]}  b4 {[%clk 0:00:40]} 30. bxc4 {[%clk 0:01:05]}  bxc3 {[%clk 0:00:38]} 31. Nxc3 {[%clk 0:01:04]}  Nd4 {[%clk 0:00:34]} 32. Bxh5 {[%clk 0:01:04]}  Nbc6 {[%clk 0:00:18]} 33. Nd5 {[%clk 0:01:02]}  Rc2 {[%clk 0:00:16]} 34. Nd3 {[%clk 0:01:01]}  Rxc4 {[%clk 0:00:15]} 35. Bd1 {[%clk 0:00:57]}  Rg8 {[%clk 0:00:13]} 36. Rxg8 {[%clk 0:00:51]}  Kxg8 {[%clk 0:00:14]} 37. Kg2 {[%clk 0:00:48]}  Kf7 {[%clk 0:00:14]} 38. Kh3 {[%clk 0:00:48]}  Bf6 {[%clk 0:00:15]} 39. Kg4 {[%clk 0:00:48]}  Ne7 {[%clk 0:00:12]} 40. Nxf6 {[%clk 0:00:37]}  Kxf6 {[%clk 0:00:12]} 41. Rh1 {[%clk 0:00:37]}  Ndxf5 {[%clk 0:00:12]} 42. Bf3 {[%clk 0:00:30]}  Ng6 {[%clk 0:00:10]} 43. Rh6 {[%clk 0:00:23]}  Rd4 {[%clk 0:00:10]} 44. Rh5 {[%clk 0:00:21]}  Ne3+ {[%clk 0:00:09]} 45. Kg3 {[%clk 0:00:20]}  Rxd3 {[%clk 0:00:10]} 46. Kf2 {[%clk 0:00:20]}  Nf4 {[%clk 0:00:10]} 47. Rh6+ {[%clk 0:00:19]}  Kg5 {[%clk 0:00:10]} 48. Ra6 {[%clk 0:00:18]}  Nc4 {[%clk 0:00:10]} 49. a4 {[%clk 0:00:17]}  Rd2+ {[%clk 0:00:08]} 50. Ke1 {[%clk 0:00:17]}  Nd3+ {[%clk 0:00:08]} 51. Kf1 {[%clk 0:00:15]}  Rf2+ {[%clk 0:00:09]} 52. Kg1 {[%clk 0:00:16]}  Rxf3 {[%clk 0:00:09]} 53. Rc6 {[%clk 0:00:15]}  Ne3 {[%clk 0:00:08]} 54. Ra6 {[%clk 0:00:12]}  Rg3+ {[%clk 0:00:07]} 55. Kh2 {[%clk 0:00:12]}  Nf1+ {[%clk 0:00:07]} 56. Kh1 {[%clk 0:00:12]}  Nf2# {[%clk 0:00:08]} 0-1


[Site "https://www.chess.com"]